[Event "MČR juniorů a juniorek v rapid šachu 2024"]
[Site "Hotel Fit Fun, Harrachov, Czech Republic"]
[Date "2024.09.21"]
[Round "3.30"]
[White "Hudik Martin"]
[Black "Kopecka Libuse"]
[Result "1-0"]
[TimeControl "20+5"]
[WhiteFideId "23769947"]
[BlackFideId "23748826"]
[WhiteElo "1572"]
[BlackElo "1496"]

1. e4 {[%clk 00:20:08]} c5 {[%clk 00:20:10]} {[%emt 00:00:01]} 2. Nf3 {[%clk
00:20:11]} {[%emt 00:00:02]} Nc6 {[%clk 00:20:14]} {[%emt 00:00:01]} 3. d4
{[%clk 00:20:15]} {[%emt 00:00:02]} cxd4 {[%clk 00:20:18]} 4. Nxd4 {[%clk
00:20:18]} {[%emt 00:00:02]} d6 {[%clk 00:20:22]} 5. Nc3 {[%clk 00:20:08]}
{[%emt 00:00:15]} g6 {[%clk 00:20:24]} {[%emt 00:00:03]} 6. Be3 {[%clk
00:20:03]} {[%emt 00:00:10]} Bg7 {[%clk 00:20:27]} {[%emt 00:00:02]} 7. Bc4
{[%clk 00:19:58]} {[%emt 00:00:10]} Nf6 {[%clk 00:20:15]} {[%emt 00:00:16]} 8.
O-O {[%clk 00:19:47]} {[%emt 00:00:16]} O-O {[%clk 00:20:02]} {[%emt 00:00:19]}
9. h3 {[%clk 00:19:30]} {[%emt 00:00:22]} Qa5 {[%clk 00:19:41]} {[%emt
00:00:25]} 10. Qe2 {[%clk 00:18:24]} {[%emt 00:01:10]} Qc7 {[%clk 00:18:01]}
{[%emt 00:01:40]} 11. Rad1 {[%clk 00:16:00]} {[%emt 00:02:35]} a6 {[%clk
00:16:17]} {[%emt 00:01:49]} 12. a4 {[%clk 00:15:03]} {[%emt 00:01:03]} Re8
{[%clk 00:15:12]} {[%emt 00:01:10]} 13. f4 {[%clk 00:14:15]} {[%emt 00:00:53]}
b6 {[%clk 00:12:52]} {[%emt 00:02:24]} 14. f5 {[%clk 00:10:48]} {[%emt
00:03:32]} Ne5 {[%clk 00:11:34]} {[%emt 00:01:23]} 15. Bd5 {[%clk 00:08:29]}
{[%emt 00:02:24]} Bb7 {[%clk 00:08:34]} {[%emt 00:03:05]} 16. Bxb7 {[%clk
00:08:03]} {[%emt 00:00:32]} Qxb7 {[%clk 00:08:30]} {[%emt 00:00:09]} 17. Bf4
{[%clk 00:07:18]} {[%emt 00:00:50]} Ned7 {[%clk 00:07:17]} {[%emt 00:01:18]} 18.
fxg6 fxg6 {[%clk 00:05:09]} 19. Ne6 {[%clk 00:05:42]} {[%emt 00:00:54]} Nc5
{[%clk 00:04:17]} {[%emt 00:00:57]} 20. Nxg7 {[%clk 00:05:04]} {[%emt
00:00:43]} Kxg7 {[%clk 00:04:16]} {[%emt 00:00:07]} 21. e5 {[%clk 00:04:53]}
{[%emt 00:00:17]} dxe5 {[%clk 00:03:29]} {[%emt 00:00:51]} 22. Bxe5 {[%clk
00:04:51]} {[%emt 00:00:08]} Ncd7 {[%clk 00:03:09]} {[%emt 00:00:24]} 23. g4
{[%clk 00:03:23]} {[%emt 00:01:33]} Nxe5 {[%clk 00:02:33]} {[%emt 00:00:41]} 24.
Qxe5 {[%clk 00:03:19]} {[%emt 00:00:09]} Qb8 {[%clk 00:02:20]} {[%emt
00:00:18]} 25. Qe3 {[%clk 00:02:36]} {[%emt 00:00:49]} Rd8 {[%clk 00:01:34]}
{[%emt 00:00:50]} 26. g5 {[%clk 00:02:33]} {[%emt 00:00:08]} Rxd1 {[%clk
00:01:26]} {[%emt 00:00:14]} 27. gxf6+ {[%clk 00:01:18]} {[%emt 00:01:19]} exf6
{[%clk 00:01:11]} {[%emt 00:00:20]} 28. Rxd1 {[%clk 00:01:20]} {[%emt
00:00:03]} b5 {[%clk 00:00:37]} {[%emt 00:00:39]} 29. axb5 {[%clk 00:01:13]}
{[%emt 00:00:12]} axb5 {[%clk 00:00:38]} {[%emt 00:00:05]} 30. Rd7+ {[%clk
00:01:12]} {[%emt 00:00:06]} Kg8 {[%clk 00:00:37]} {[%emt 00:00:06]} 31. Qe6+
{[%clk 00:01:12]} {[%emt 00:00:04]} Kf8 {[%clk 00:00:33]} {[%emt 00:00:09]} 32.
Qf7# {[%clk 00:01:15]} {[%emt 00:00:03]} 1-0



[ePGN "0.1;DGT LiveChess/2.2.6"]

[Event "MČR juniorů a juniorek v rapid šachu 2024"]
[Site "Hotel Fit Fun, Harrachov, Czech Republic"]
[Date "2024.09.21"]
[Round "3.31"]
[White "Dufkova Tereza"]
[Black "Housa Jan"]
[Result "0-1"]
[TimeControl "20+5"]
[WhiteFideId "23744383"]
[BlackFideId "23736356"]
[WhiteElo "1601"]
[BlackElo "1788"]

1. e4 {[%clk 00:20:08]} c6 {[%clk 00:20:09]} {[%emt 00:00:01]} 2. d4 {[%clk
00:20:11]} {[%emt 00:00:02]} d5 {[%clk 00:20:13]} {[%emt 00:00:03]} 3. f3
{[%clk 00:20:12]} {[%emt 00:00:02]} dxe4 {[%clk 00:20:16]} {[%emt 00:00:02]} 4.
fxe4 {[%clk 00:20:15]} {[%emt 00:00:01]} e5 {[%clk 00:20:20]} {[%emt 00:00:01]}
5. c3 {[%clk 00:20:16]} {[%emt 00:00:05]} Nf6 {[%clk 00:20:00]} {[%emt
00:00:25]} 6. Bd3 {[%clk 00:20:02]} {[%emt 00:00:19]} Bd6 {[%clk 00:19:48]}
{[%emt 00:00:17]} 7. Nf3 {[%clk 00:20:01]} {[%emt 00:00:05]} Bg4 {[%clk
00:19:38]} {[%emt 00:00:15]} 8. Bg5 {[%clk 00:19:57]} {[%emt 00:00:09]} Nbd7
{[%emt 00:00:15]} 9. Nbd2 {[%clk 00:19:52]} {[%emt 00:00:04]} Qc7 {[%clk
00:19:29]} {[%emt 00:00:10]} 10. Qc2 {[%clk 00:15:45]} {[%emt 00:04:12]} O-O-O
{[%clk 00:19:14]} {[%emt 00:00:20]} 11. h3 {[%clk 00:13:54]} {[%emt 00:01:56]}
Bxf3 {[%clk 00:17:40]} {[%emt 00:01:39]} 12. Nxf3 {[%clk 00:13:53]} {[%emt
00:00:06]} exd4 {[%clk 00:16:20]} {[%emt 00:01:26]} 13. cxd4 {[%clk 00:13:33]}
{[%emt 00:00:24]} Bg3+ {[%clk 00:15:11]} {[%emt 00:01:14]} 14. Ke2 {[%clk
00:10:53]} {[%emt 00:02:45]} h6 {[%clk 00:14:15]} {[%emt 00:01:02]} 15. Bxf6
{[%clk 00:09:20]} {[%emt 00:01:37]} Nxf6 {[%clk 00:14:07]} {[%emt 00:00:14]} 16.
b4 {[%clk 00:07:54]} {[%emt 00:01:31]} Rhe8 {[%clk 00:12:37]} {[%emt 00:01:35]}
17. e5 {[%clk 00:07:41]} {[%emt 00:00:18]} Rxd4 {[%clk 00:11:02]} {[%emt
00:01:39]} 18. Nxd4 {[%clk 00:06:12]} {[%emt 00:01:35]} Qxe5+ {[%clk 00:11:03]}
{[%emt 00:00:04]} 19. Kd2 {[%clk 00:06:02]} {[%emt 00:00:15]} Qxd4 {[%clk
00:10:39]} {[%emt 00:00:29]} 20. Rhf1 {[%clk 00:05:17]} {[%emt 00:00:50]} Ne4+
{[%clk 00:10:26]} {[%emt 00:00:18]} 21. Ke2 {[%clk 00:04:29]} {[%emt 00:00:51]}
Nc3+ {[%clk 00:10:00]} {[%emt 00:00:33]} 22. Kd2 {[%clk 00:04:07]} {[%emt
00:00:27]} Re2+ {[%clk 00:10:02]} {[%emt 00:00:02]} 23. Kc1 {[%clk 00:03:32]}
{[%emt 00:00:41]} Rxc2+ {[%clk 00:09:46]} {[%emt 00:00:19]} 24. Kxc2 {[%clk
00:03:33]} {[%emt 00:00:05]} f6 {[%clk 00:09:33]} {[%emt 00:00:18]} 25. Rf3
{[%clk 00:03:19]} {[%emt 00:00:19]} Nd5 {[%clk 00:09:09]} {[%emt 00:00:30]} 26.
Rd1 {[%clk 00:02:58]} {[%emt 00:00:25]} Qc3+ {[%clk 00:08:28]} {[%emt
00:00:46]} 27. Kb1 {[%clk 00:03:00]} {[%emt 00:00:07]} Qxb4+ {[%clk 00:08:32]}
{[%emt 00:00:07]} 28. Kc1 {[%clk 00:02:45]} {[%emt 00:00:20]} Bf4+ {[%clk
00:08:29]} {[%emt 00:00:08]} 0-1



[ePGN "0.1;DGT LiveChess/2.2.6"]

[Event "MČR juniorů a juniorek v rapid šachu 2024"]
[Site "Hotel Fit Fun, Harrachov, Czech Republic"]
[Date "2024.09.21"]
[Round "3.32"]
[White "Fousek Petr"]
[Black "Macova Marketa"]
[Result "1-0"]
[TimeControl "20+5"]
[WhiteFideId "23736003"]
[BlackFideId "23715588"]
[WhiteElo "1731"]
[BlackElo "1587"]

1. e4 {[%clk 00:20:06]} {[%emt 00:00:04]} e5 {[%clk 00:20:09]} {[%emt
00:00:03]} 2. f4 {[%clk 00:20:07]} {[%emt 00:00:02]} exf4 {[%clk 00:20:08]}
{[%emt 00:00:06]} 3. Nf3 {[%clk 00:20:10]} {[%emt 00:00:01]} Bc5 {[%clk
00:19:53]} {[%emt 00:00:20]} 4. d4 {[%clk 00:20:07]} {[%emt 00:00:07]} Bb6
{[%clk 00:19:44]} {[%emt 00:00:15]} 5. Bc4 {[%clk 00:20:07]} {[%emt 00:00:04]}
d6 {[%clk 00:19:25]} {[%emt 00:00:24]} 6. Bxf4 {[%clk 00:20:04]} {[%emt
00:00:09]} Bg4 {[%clk 00:19:19]} {[%emt 00:00:11]} 7. O-O {[%clk 00:19:36]}
{[%emt 00:00:33]} Nc6 {[%clk 00:19:06]} {[%emt 00:00:17]} 8. c3 {[%clk
00:19:36]} {[%emt 00:00:05]} Qd7 {[%clk 00:17:20]} {[%emt 00:01:52]} 9. Nbd2
{[%clk 00:18:13]} {[%emt 00:01:29]} Nge7 {[%clk 00:16:55]} {[%emt 00:00:29]} 10.
Bg3 {[%clk 00:17:38]} {[%emt 00:00:41]} f5 {[%clk 00:15:08]} {[%emt 00:01:51]}
11. exf5 {[%clk 00:16:41]} {[%emt 00:01:02]} Nxf5 {[%clk 00:15:01]} {[%emt
00:00:12]} 12. Qe2+ {[%clk 00:16:23]} {[%emt 00:00:23]} Nce7 {[%clk 00:14:21]}
{[%emt 00:00:45]} 13. Rae1 {[%clk 00:16:05]} {[%emt 00:00:23]} d5 {[%clk
00:12:39]} {[%emt 00:01:47]} 14. Bd3 {[%clk 00:15:47]} {[%emt 00:00:23]} Nxg3
{[%clk 00:12:08]} {[%emt 00:00:36]} 15. hxg3 {[%clk 00:15:45]} {[%emt
00:00:08]} c6 {[%clk 00:09:50]} {[%emt 00:02:22]} 16. Qe3 {[%clk 00:15:28]}
{[%emt 00:00:22]} Bc7 {[%clk 00:08:57]} {[%emt 00:00:58]} 17. Ne5 {[%clk
00:15:21]} {[%emt 00:00:12]} Bxe5 {[%clk 00:07:58]} {[%emt 00:01:04]} 18. Qxe5
{[%clk 00:15:23]} {[%emt 00:00:02]} Rf8 {[%clk 00:03:24]} {[%emt 00:04:40]} 19.
Qxg7 {[%clk 00:15:06]} {[%emt 00:00:22]} Rxf1+ {[%clk 00:03:17]} {[%emt
00:00:12]} 20. Nxf1 {[%clk 00:14:56]} {[%emt 00:00:14]} Be6 {[%clk 00:02:18]}
{[%emt 00:01:04]} 21. Qh8+ {[%clk 00:14:36]} {[%emt 00:00:25]} Bg8 {[%clk
00:01:24]} {[%emt 00:01:00]} 22. Qxg8# {[%clk 00:14:39]} {[%emt 00:00:03]} 1-0



[ePGN "0.1;DGT LiveChess/2.2.6"]

[Event "MČR juniorů a juniorek v rapid šachu 2024"]
[Site "Hotel Fit Fun, Harrachov, Czech Republic"]
[Date "2024.09.21"]
[Round "3.33"]
[White "Vratil Tomas"]
[Black "Taborska Aneta"]
[Result "1-0"]
[TimeControl "20+5"]
[WhiteFideId "23756870"]
[BlackFideId "23733039"]
[WhiteElo "1671"]
[BlackElo "1582"]

1. e4 {[%clk 00:20:07]} {[%emt 00:00:02]} d5 {[%clk 00:20:10]} {[%emt
00:00:01]} 2. exd5 {[%clk 00:20:09]} {[%emt 00:00:03]} Qxd5 {[%clk 00:20:14]} 3.
Nc3 {[%clk 00:20:12]} {[%emt 00:00:02]} Qa5 {[%clk 00:20:17]} {[%emt 00:00:01]}
4. d4 {[%clk 00:20:16]} {[%emt 00:00:01]} Nf6 {[%clk 00:20:20]} {[%emt
00:00:01]} 5. Nf3 {[%clk 00:20:12]} {[%emt 00:00:10]} Bg4 {[%clk 00:20:23]}
{[%emt 00:00:02]} 6. Be2 {[%clk 00:20:10]} {[%emt 00:00:06]} Nc6 {[%clk
00:20:26]} {[%emt 00:00:03]} 7. O-O {[%clk 00:19:31]} {[%emt 00:00:44]} O-O-O
{[%clk 00:20:27]} {[%emt 00:00:03]} 8. Be3 {[%clk 00:19:12]} {[%emt 00:00:25]}
e5 {[%clk 00:20:26]} {[%emt 00:00:04]} 9. d5 {[%clk 00:18:10]} {[%emt
00:01:09]} Nxd5 {[%clk 00:20:16]} {[%emt 00:00:14]} 10. Nxd5 {[%clk 00:16:43]}
{[%emt 00:01:33]} Rxd5 {[%clk 00:20:04]} {[%emt 00:00:17]} 11. Qe1 {[%clk
00:16:46]} {[%emt 00:00:02]} Nb4 {[%clk 00:18:22]} {[%emt 00:01:47]} 12. Qc3
{[%clk 00:13:20]} {[%emt 00:03:31]} e4 {[%clk 00:18:01]} {[%emt 00:00:26]} 13.
Bc4 {[%clk 00:13:23]} {[%emt 00:00:02]} exf3 {[%clk 00:16:59]} {[%emt
00:01:07]} 14. Bxd5 {[%clk 00:12:43]} {[%emt 00:00:45]} Qxd5 {[%clk 00:16:43]}
{[%emt 00:00:20]} 15. Rad1 {[%clk 00:12:05]} {[%emt 00:00:43]} Qh5 {[%clk
00:16:24]} {[%emt 00:00:17]} 16. Rfe1 {[%clk 00:10:41]} {[%emt 00:01:35]} Bd6
{[%clk 00:16:14]} {[%emt 00:00:16]} 17. Rxd6 {[%clk 00:10:11]} {[%emt
00:00:35]} fxg2 {[%clk 00:16:07]} {[%emt 00:00:13]} 18. Bf4 {[%clk 00:09:36]}
{[%emt 00:00:39]} Nc6 {[%clk 00:15:53]} {[%emt 00:00:20]} 19. Rxc6 {[%clk
00:09:09]} {[%emt 00:00:31]} bxc6 {[%clk 00:15:25]} {[%emt 00:00:33]} 20. Qxc6
{[%clk 00:09:12]} {[%emt 00:00:02]} Qa5 {[%clk 00:14:59]} {[%emt 00:00:32]} 21.
Re7 {[%clk 00:08:15]} {[%emt 00:01:01]} 1-0



[ePGN "0.1;DGT LiveChess/2.2.6"]

[Event "MČR juniorů a juniorek v rapid šachu 2024"]
[Site "Hotel Fit Fun, Harrachov, Czech Republic"]
[Date "2024.09.21"]
[Round "3.34"]
[White "Zadrapova Gabriela"]
[Black "Jun Rostislav"]
[Result "0-1"]
[TimeControl "20+5"]
[WhiteFideId "23753056"]
[BlackFideId "23719524"]
[WhiteElo "1456"]
[BlackElo "1641"]

1. e4 {[%clk 00:20:08]} c5 {[%clk 00:20:09]} {[%emt 00:00:01]} 2. Nf3 {[%clk
00:20:12]} {[%emt 00:00:01]} Nc6 {[%clk 00:20:13]} {[%emt 00:00:01]} 3. Bb5
{[%clk 00:20:12]} {[%emt 00:00:05]} e6 {[%clk 00:20:17]} {[%emt 00:00:01]} 4.
O-O {[%clk 00:20:11]} {[%emt 00:00:07]} d6 {[%clk 00:20:20]} {[%emt 00:00:02]}
5. d4 {[%clk 00:20:11]} {[%emt 00:00:04]} cxd4 {[%clk 00:20:23]} {[%emt
00:00:02]} 6. Nxd4 {[%clk 00:20:14]} {[%emt 00:00:02]} Qc7 {[%clk 00:20:19]}
{[%emt 00:00:09]} 7. b3 {[%clk 00:19:52]} {[%emt 00:00:27]} a6 {[%clk
00:20:22]} {[%emt 00:00:03]} 8. Be2 {[%clk 00:19:44]} {[%emt 00:00:13]} Nf6
{[%clk 00:20:24]} {[%emt 00:00:03]} 9. Nd2 {[%clk 00:19:41]} {[%emt 00:00:07]}
Nxd4 {[%clk 00:20:25]} {[%emt 00:00:04]} 10. Bb2 {[%clk 00:19:44]} {[%emt
00:00:03]} Nxe2+ {[%clk 00:20:19]} {[%emt 00:00:11]} 11. Qxe2 {[%clk 00:19:47]}
{[%emt 00:00:01]} Be7 {[%clk 00:20:23]} 12. c4 {[%clk 00:19:42]} {[%emt
00:00:10]} O-O {[%clk 00:20:20]} {[%emt 00:00:08]} 13. Rad1 {[%clk 00:19:24]}
{[%emt 00:00:23]} b5 {[%clk 00:19:45]} {[%emt 00:00:40]} 14. e5 {[%clk
00:18:58]} {[%emt 00:00:31]} dxe5 {[%clk 00:18:58]} {[%emt 00:00:52]} 15. Bxe5
{[%clk 00:19:01]} {[%emt 00:00:02]} Qb6 {[%clk 00:18:43]} {[%emt 00:00:14]} 16.
Qf3 {[%clk 00:16:51]} {[%emt 00:02:21]} Bb7 {[%clk 00:18:08]} {[%emt 00:00:40]}
17. Qg3 {[%clk 00:16:52]} {[%emt 00:00:03]} Qc5 {[%clk 00:16:22]} {[%emt
00:01:50]} 18. Rfe1 {[%clk 00:15:24]} {[%emt 00:01:35]} Rad8 {[%clk 00:15:17]}
{[%emt 00:01:10]} 19. Bf4 {[%clk 00:14:46]} {[%emt 00:00:42]} Nh5 {[%clk
00:14:55]} {[%emt 00:00:27]} 20. Qg4 {[%clk 00:13:47]} {[%emt 00:01:04]} Nxf4
{[%clk 00:14:54]} {[%emt 00:00:07]} 21. Qxf4 {[%clk 00:13:51]} {[%emt
00:00:02]} Bg5 {[%clk 00:14:53]} {[%emt 00:00:06]} 22. Ne4 {[%clk 00:12:44]}
{[%emt 00:01:11]} Bxe4 {[%clk 00:14:00]} {[%emt 00:00:59]} 23. Qxe4 {[%clk
00:12:47]} {[%emt 00:00:02]} Rd6 {[%clk 00:13:19]} {[%emt 00:00:46]} 24. Qe2
{[%clk 00:11:43]} {[%emt 00:01:08]} Rfd8 {[%clk 00:12:17]} {[%emt 00:01:05]} 25.
h3 {[%clk 00:11:10]} {[%emt 00:00:40]} Rxd1 {[%clk 00:11:51]} {[%emt 00:00:31]}
26. Rxd1 {[%clk 00:11:14]} {[%emt 00:00:01]} Rxd1+ {[%clk 00:11:55]} {[%emt
00:00:01]} 27. Qxd1 {[%clk 00:11:18]} {[%emt 00:00:02]} bxc4 {[%clk 00:11:48]}
{[%emt 00:00:12]} 28. bxc4 {[%emt 00:00:14]} Qxc4 {[%clk 00:11:50]} 29. Kh2
{[%clk 00:10:58]} {[%emt 00:00:17]} Qf4+ {[%clk 00:11:44]} {[%emt 00:00:11]} 30.
Kg1 {[%clk 00:10:55]} {[%emt 00:00:08]} Qc1 {[%clk 00:11:47]} {[%emt 00:00:02]}
31. Qxc1 {[%clk 00:10:56]} {[%emt 00:00:04]} Bxc1 {[%clk 00:11:51]} {[%emt
00:00:02]} 0-1



[ePGN "0.1;DGT LiveChess/2.2.6"]

[Event "MČR juniorů a juniorek v rapid šachu 2024"]
[Site "Hotel Fit Fun, Harrachov, Czech Republic"]
[Date "2024.09.21"]
[Round "3.35"]
[White "Slivova Linda"]
[Black "Martinkovicova Nela"]
[Result "1-0"]
[TimeControl "20+5"]
[WhiteFideId "23709294"]
[BlackFideId "23715596"]
[WhiteElo "1630"]
[BlackElo "1446"]

1. d4 {[%clk 00:20:08]} d5 {[%clk 00:20:09]} {[%emt 00:00:02]} 2. Nf3 {[%clk
00:20:12]} {[%emt 00:00:02]} Nf6 {[%clk 00:20:11]} {[%emt 00:00:02]} 3. Bf4
{[%clk 00:20:16]} g6 {[%clk 00:20:14]} {[%emt 00:00:02]} 4. e3 {[%clk
00:20:11]} {[%emt 00:00:10]} Bg7 {[%clk 00:20:04]} {[%emt 00:00:14]} 5. Nbd2
{[%clk 00:19:55]} {[%emt 00:00:21]} O-O {[%clk 00:19:44]} {[%emt 00:00:25]} 6.
c4 {[%clk 00:19:33]} {[%emt 00:00:27]} Bg4 {[%clk 00:18:12]} {[%emt 00:01:37]}
7. Qb3 {[%clk 00:19:18]} {[%emt 00:00:20]} b6 {[%clk 00:17:26]} {[%emt
00:00:52]} 8. h3 {[%clk 00:18:14]} {[%emt 00:01:09]} Be6 {[%clk 00:17:15]}
{[%emt 00:00:16]} 9. Rc1 {[%clk 00:15:30]} {[%emt 00:02:49]} c5 {[%clk
00:16:34]} {[%emt 00:00:45]} 10. Be2 {[%clk 00:13:33]} {[%emt 00:02:02]} Nc6
{[%clk 00:16:19]} {[%emt 00:00:20]} 11. dxc5 {[%clk 00:11:56]} {[%emt
00:01:43]} bxc5 {[%clk 00:16:00]} {[%emt 00:00:25]} 12. O-O {[%clk 00:10:45]}
{[%emt 00:01:15]} Rb8 {[%clk 00:15:53]} {[%emt 00:00:12]} 13. Bxb8 {[%clk
00:10:47]} {[%emt 00:00:03]} Nxb8 {[%clk 00:15:54]} {[%emt 00:00:03]} 14. cxd5
{[%clk 00:10:14]} {[%emt 00:00:38]} Bxd5 {[%clk 00:15:38]} {[%emt 00:00:21]} 15.
Bc4 {[%clk 00:10:08]} {[%emt 00:00:11]} Qd6 {[%clk 00:15:16]} {[%emt 00:00:28]}
16. Bxd5 {[%clk 00:09:39]} {[%emt 00:00:34]} Nxd5 {[%clk 00:15:06]} {[%emt
00:00:15]} 17. Rfd1 {[%clk 00:09:10]} {[%emt 00:00:33]} Nd7 {[%clk 00:14:23]}
{[%emt 00:00:48]} 18. Ne4 {[%clk 00:08:54]} {[%emt 00:00:21]} Qc6 {[%clk
00:13:24]} {[%emt 00:01:04]} 19. Qxd5 {[%clk 00:08:51]} {[%emt 00:00:08]} Qxd5
{[%clk 00:13:03]} {[%emt 00:00:27]} 20. Rxd5 {[%clk 00:08:54]} {[%emt
00:00:02]} Rd8 {[%clk 00:13:02]} {[%emt 00:00:05]} 21. Rcd1 {[%clk 00:08:53]}
{[%emt 00:00:06]} 1-0



[ePGN "0.1;DGT LiveChess/2.2.6"]

[Event "MČR juniorů a juniorek v rapid šachu 2024"]
[Site "Hotel Fit Fun, Harrachov, Czech Republic"]
[Date "2024.09.21"]
[Round "3.36"]
[White "Kopecka Anna"]
[Black "Plzak David"]
[Result "1/2-1/2"]
[TimeControl "20+5"]
[WhiteFideId "23767740"]
[BlackFideId "23776234"]
[WhiteElo "1431"]
[BlackElo "1625"]

1. d4 {[%clk 00:20:08]} {[%emt 00:00:01]} d5 {[%clk 00:20:09]} {[%emt
00:00:02]} 2. Nf3 {[%clk 00:20:11]} {[%emt 00:00:03]} Nf6 {[%clk 00:20:12]} 3.
e3 {[%clk 00:20:16]} {[%emt 00:00:01]} Bf5 {[%clk 00:20:08]} {[%emt 00:00:09]}
4. Bd3 {[%clk 00:20:19]} {[%emt 00:00:01]} Bxd3 {[%clk 00:19:12]} {[%emt
00:01:01]} 5. Qxd3 {[%clk 00:20:22]} {[%emt 00:00:02]} e6 {[%clk 00:19:09]}
{[%emt 00:00:08]} 6. Nbd2 {[%clk 00:20:20]} {[%emt 00:00:08]} c5 {[%clk
00:18:49]} {[%emt 00:00:25]} 7. c3 {[%clk 00:20:20]} {[%emt 00:00:05]} Nc6
{[%clk 00:18:06]} {[%emt 00:00:47]} 8. Qe2 {[%clk 00:18:54]} {[%emt 00:01:30]}
Bd6 {[%clk 00:17:38]} {[%emt 00:00:34]} 9. dxc5 {[%clk 00:17:45]} {[%emt
00:01:15]} Bxc5 {[%clk 00:16:53]} {[%emt 00:00:50]} 10. e4 {[%clk 00:17:45]}
{[%emt 00:00:04]} dxe4 {[%clk 00:15:44]} {[%emt 00:01:14]} 11. Nxe4 {[%clk
00:17:48]} {[%emt 00:00:02]} Nxe4 {[%clk 00:14:43]} {[%emt 00:01:07]} 12. Qxe4
{[%clk 00:17:51]} {[%emt 00:00:02]} h6 {[%clk 00:13:36]} {[%emt 00:01:12]} 13.
Qa4 {[%clk 00:16:47]} {[%emt 00:01:07]} O-O {[%clk 00:12:55]} {[%emt 00:00:47]}
14. O-O {[%clk 00:16:13]} {[%emt 00:00:39]} Qf6 {[%clk 00:12:32]} {[%emt
00:00:26]} 15. Qb5 {[%clk 00:14:43]} {[%emt 00:01:37]} Bb6 {[%clk 00:12:22]}
{[%emt 00:00:15]} 16. Re1 {[%clk 00:13:40]} {[%emt 00:01:08]} Rfd8 {[%clk
00:12:15]} {[%emt 00:00:12]} 17. Be3 {[%clk 00:13:11]} {[%emt 00:00:33]} Bxe3
{[%clk 00:11:37]} {[%emt 00:00:44]} 18. Rxe3 {[%clk 00:13:13]} {[%emt
00:00:02]} Rab8 {[%clk 00:11:11]} {[%emt 00:00:32]} 19. Rae1 {[%clk 00:11:51]}
{[%emt 00:01:27]} a6 {[%clk 00:11:08]} {[%emt 00:00:09]} 20. Qe2 {[%clk
00:10:49]} {[%emt 00:01:06]} Rd7 {[%clk 00:10:52]} {[%emt 00:00:20]} 21. Rd1
{[%clk 00:09:53]} {[%emt 00:01:02]} Rbd8 {[%clk 00:10:55]} {[%emt 00:00:03]} 22.
Red3 {[%clk 00:09:42]} {[%emt 00:00:15]} 1/2-1/2



[ePGN "0.1;DGT LiveChess/2.2.6"]